fUST/lending_fUST_20250228
["ID","MTS","AMOUNT","RATE_DAILY","PERIOD"]
[354808329,1740711040351,-702.01,0.00063558,120]
[354808331,1740711040365,-631.40780822,0.00063558,120]
[354808333,1740711040378,-3780.72,0.00063558,120]
[354808335,1740711040391,-500.0,0.00063558,120]
[354808337,1740711040404,-3816.17,0.00063558,120]
[354808340,1740711040418,-500.0,0.00063558,120]
[354808342,1740711040431,-500.0,0.00063558,120]
[354808343,1740711040443,-28125.23,0.00063558,7]
[354808344,1740711040456,-2308.32,0.00063558,120]
[354808345,1740711040469,-684.28,0.00063558,120]
[354808346,1740711040482,-500.0,0.00063558,120]
[354808347,1740711040495,-236.91,0.00063558,120]
[354808348,1740711040509,-500.0,0.0006356,120]
[354808350,1740711040522,-500.0,0.0006356,120]
[354808352,1740711040536,-500.0,0.0006356,120]
[354808354,1740711040549,-500.0,0.0006356,120]
[354808356,1740711040562,-500.0,0.0006356,120]
[354808358,1740711040572,-500.0,0.0006356,120]
[354808360,1740711040581,-500.0,0.0006356,120]
[354808362,1740711040591,-500.0,0.0006356,120]
[354808363,1740711040601,-500.0,0.0006356,120]
[354808365,1740711040611,-500.0,0.0006356,120]
[354808367,1740711040620,-500.0,0.0006356,120]
[354808369,1740711040630,-500.0,0.0006356,120]
[354808371,1740711040640,-500.0,0.0006356,120]
[354808372,1740711040650,-500.0,0.0006356,120]
[354808374,1740711040664,-500.0,0.0006356,120]
[354808376,1740711040676,-500.0,0.0006356,120]
[354808378,1740711040691,-3354.16,0.0006356,120]
[354808380,1740711040704,-500.0,0.0006356,120]
[354808381,1740711040714,-645.22,0.00063561,120]
[354808382,1740711040725,-156.35782742,0.00064,120]
[354808383,1740711040735,-645.22,0.00064109,120]
[354808384,1740711040745,-500.0,0.00064265,120]
[354808385,1740711040756,-158.0,0.000644,120]
[354808386,1740711040766,-645.22,0.00064657,120]
[354808387,1740711040778,-200.0,0.0006471,120]
[354808389,1740711040951,-284471.939355,0.000649,2]
[354808390,1740711040969,-151.0,0.000649,120]
[354808391,1740711040987,-151.0,0.000649,120]
[354808392,1740711040998,-151.0,0.000649,120]
[354808393,1740711041007,-247.747194,0.000649,120]
[354808394,1740711041018,-151.0,0.000649,120]
[354808395,1740711041028,-1076.841152,0.000649,120]
[354808396,1740711041039,-151.0,0.000649,120]
[354808397,1740711041049,-1076.841152,0.000649,120]
[354808398,1740711041060,-184.451296,0.000649,120]
[354808399,1740711041071,-151.611183,0.000649,120]
[354808400,1740711041082,-184.451296,0.000649,120]
[354808401,1740711041091,-152.468961,0.000649,7]
[354808402,1740711041101,-196.441603,0.00064929,30]
[354808403,1740711041110,-21911.0,0.00065,120]
[354808404,1740711041119,-274.0,0.00065,120]
[354808405,1740711041129,-274.0,0.00065,120]
[354808406,1740711041138,-2502.88796168,0.00065,120]
[354808407,1740711041149,-1000.0,0.00065,120]
[354808408,1740711041162,-4020.0,0.00065,120]
[354808409,1740711041172,-645.44125364,0.00065205,120]
[354808410,1740711041184,-3661.29,0.000653,30]
[354808411,1740711041194,-1431.26,0.000653,30]
[354808412,1740711041204,-64468.83,0.000655,30]
[354808413,1740711041215,-500.0,0.00065753,120]
[354808414,1740711041225,-1220.83,0.00065753,120]
[354808415,1740711041235,-3264.74,0.00065753,120]
[354808416,1740711041245,-1178.86,0.00065753,120]
[354808417,1740711041255,-150.0,0.00065973,15]
[354808418,1740711041264,-307459.78663814,0.00066,120]
[354808419,1740711041274,-15099.6563238,0.00066,120]
[354808420,1740711041284,-151.0,0.00066,120]
[354808421,1740711041294,-154.189757,0.00066,120]
[354808422,1740711041304,-672.305236,0.00066,120]
[354808423,1740711041313,-672.305236,0.00066,120]
[354808424,1740711041323,-151.0,0.00066,120]
[354808425,1740711041332,-157.591894,0.00066,120]
[354808426,1740711041342,-151.0,0.00066,120]
[354808427,1740711041351,-151.0,0.00066,120]
[354808428,1740711041360,-151.0,0.00066,120]
[354808429,1740711041369,-151.0,0.00066,2]
[354808430,1740711041379,-151.0,0.00066,2]
[354808431,1740711041388,-448.133255,0.00066,120]
[354808432,1740711041398,-448.133255,0.00066,120]
[354808433,1740711041410,-347.378101,0.00066,120]
[354808434,1740711041419,-347.378101,0.00066,120]
[354808435,1740711041428,-151.0,0.00066,120]
[354808436,1740711041438,-151.0,0.00066,120]
[354808437,1740711041447,-151.0,0.00066,120]
[354808438,1740711041456,-151.0,0.00066,120]
[354808439,1740711041476,-690.848298,0.00066,120]
[354808440,1740711041487,-690.848298,0.00066,120]
[354808441,1740711041497,-151.0,0.00066,120]
[354808442,1740711041508,-151.0,0.00066,30]
[354808443,1740711041519,-151.0,0.00066,120]
[354808444,1740711041529,-151.0,0.00066,120]
[354808445,1740711041540,-151.0,0.00066,120]
[354808446,1740711041550,-1076.841152,0.00066,120]
[354808447,1740711041560,-1076.841152,0.00066,120]
[354808448,1740711041570,-184.451296,0.00066,120]
[354808449,1740711041580,-184.451296,0.00066,120]
[354808450,1740711041590,-1624.99,0.00066198,120]
[354808451,1740711041600,-560.65,0.00066198,120]
[354808452,1740711041610,-1395.02,0.00066198,120]
[354808453,1740711041620,-5503.07,0.00066198,120]
[354808454,1740711041630,-500.0,0.00066297,120]
[354808455,1740711041639,-500.0,0.00066297,120]
[354808456,1740711041650,-586.18,0.00066297,120]
[354808457,1740711041663,-500.0,0.00066297,120]
[354808458,1740711041673,-500.0,0.00066297,120]
[354808459,1740711041684,-500.0,0.00066297,120]
[354808460,1740711041694,-689.73,0.00066297,120]
[354808461,1740711041707,-721.81,0.00066297,120]
[354808462,1740711041717,-500.0,0.00066297,120]
[354808463,1740711041726,-3541.66,0.00066297,120]
[354808464,1740711041736,-500.0,0.00066297,120]
[354808465,1740711041747,-1916.66,0.00066297,120]
[354808466,1740711041757,-500.0,0.00066297,120]
[354808467,1740711041767,-500.0,0.00066297,120]
[354808468,1740711041778,-422.81,0.00066297,120]
[354808469,1740711041789,-500.0,0.00066297,120]
[354808470,1740711041799,-1371.64,0.00066297,120]
[354808471,1740711041809,-3093.38,0.00066297,120]
[354808472,1740711041819,-745.08,0.00066297,120]
[354808473,1740711041828,-500.0,0.00066297,120]
[354808474,1740711041838,-500.0,0.00066297,120]
[354808475,1740711041848,-1141.61,0.00066297,120]
[354808476,1740711041858,-585.52,0.00066297,120]
[354808477,1740711041868,-500.0,0.00066297,120]
[354808478,1740711041878,-500.0,0.00066297,120]
[354808479,1740711041888,-2121.8,0.00066297,120]
[354808480,1740711041898,-500.0,0.00066297,120]
[354808481,1740711041909,-799.49,0.00066297,120]
[354808482,1740711041919,-500.0,0.00066297,120]
[354808483,1740711041928,-1492.81,0.00066297,120]
[354808484,1740711041938,-762.94,0.00066297,120]
[354808485,1740711041948,-202.31028683,0.00066297,120]
[354808486,1740711041958,-500.0,0.00066297,120]
[354808487,1740711041969,-500.0,0.00066297,120]
[354808488,1740711041979,-500.0,0.00066297,120]
[354808489,1740711041988,-725.19,0.00066297,120]
[354808490,1740711041998,-500.0,0.00066297,120]
[354808491,1740711042008,-6264.52,0.00066297,120]
[354808492,1740711042018,-500.0,0.00066297,120]
[354808493,1740711042028,-15140.25,0.00066297,7]
[354808494,1740711042038,-1016.52,0.00066297,120]
[354808495,1740711042048,-500.0,0.00066297,120]
[354808496,1740711042058,-500.0,0.00066297,120]
[354808497,1740711042068,-500.0,0.00066297,120]
[354808498,1740711042078,-535.88,0.00066298,120]
[354808499,1740711042088,-500.0,0.00066298,120]
[354808500,1740711042098,-500.0,0.00066298,120]
[354808501,1740711042108,-500.0,0.00066298,120]
[354808502,1740711042118,-500.0,0.00066298,120]
[354808503,1740711042128,-619.7,0.00066298,120]
[354808504,1740711042138,-500.0,0.00066298,120]
[354808505,1740711042148,-500.0,0.00066298,120]
[354808506,1740711042160,-414.67,0.00066298,120]
[354808507,1740711042170,-500.0,0.00066298,120]
[354808508,1740711042179,-702.01,0.00066298,120]
[354808509,1740711042188,-3780.72,0.00066298,120]
[354808510,1740711042198,-500.0,0.00066298,120]
[354808511,1740711042209,-3816.17,0.00066298,120]
[354808512,1740711042219,-500.0,0.00066298,120]
[354808513,1740711042228,-500.0,0.00066298,120]
[354808514,1740711042237,-28125.23,0.00066298,7]
[354808515,1740711042247,-2308.32,0.00066298,120]
[354808516,1740711042256,-684.28,0.00066298,120]
[354808517,1740711042265,-500.0,0.00066298,120]
[354808518,1740711042275,-500.0,0.00066299,120]
[354808519,1740711042284,-500.0,0.00066299,120]
[354808520,1740711042294,-500.0,0.00066299,120]
[354808521,1740711042304,-500.0,0.00066299,120]
[354808522,1740711042314,-500.0,0.00066299,120]
[354808523,1740711042323,-500.0,0.00066299,120]
[354808524,1740711042333,-579.66880445,0.00066299,120]
[354808525,1740711042342,-500.0,0.00066299,120]
[354808526,1740711042352,-500.0,0.00066299,120]
[354808527,1740711042362,-500.0,0.00066299,120]
[354808528,1740711042371,-500.0,0.00066299,120]
[354808529,1740711042381,-500.0,0.00066299,120]
[354808530,1740711042390,-500.0,0.00066299,120]
[354808531,1740711042399,-500.0,0.00066299,120]
[354808532,1740711042410,-500.0,0.00066299,120]
[354808533,1740711042420,-422.48,0.00066299,120]
[354808534,1740711042430,-3354.16,0.00066299,120]
[354808535,1740711042440,-500.0,0.00066299,120]
[354808536,1740711042449,-324.32,0.000663,30]
[354808537,1740711042458,-250.0,0.00066521,15]
[354808538,1740711042468,-21911.0,0.00067,120]
[354808539,1740711042478,-274.0,0.00067,120]
[354808540,1740711042488,-274.0,0.00067,120]
[354808541,1740711042498,-165.0,0.00067,120]
[354808542,1740711042508,-153.0,0.00067,120]
[354808543,1740711042518,-167.0,0.00067,120]
[354808544,1740711042527,-274.0,0.00067,120]
[354808545,1740711042538,-350.0,0.00067068,15]
[354808546,1740711042551,-182.0,0.000671,120]
[354808547,1740711042560,-158.0,0.000673,120]
[354808548,1740711042571,-151.0,0.00067534,120]
[354808549,1740711042582,-450.0,0.00067616,15]
[354808550,1740711042592,-1000.0,0.00067701,15]
[354808551,1740711042602,-1000.0,0.00068,120]
[354808552,1740711042612,-1500.0,0.00068071,7]
[354808553,1740711042621,-550.0,0.00068164,15]
[354808554,1740711042631,-666.0,0.00068493,2]
[354808555,1740711042641,-666.0,0.00068493,2]
[354808556,1740711042650,-666.0,0.00068493,120]
[354808557,1740711042663,-1000.0,0.00068493,60]
[354808558,1740711042672,-1000.0,0.00068493,60]
[354808559,1740711042688,-1000.0,0.00068493,60]
[354808560,1740711042698,-1000.0,0.00068493,60]
[354808561,1740711042708,-1000.0,0.00068493,60]
[354808562,1740711042719,-1010.90470169,0.00068493,120]
[354808563,1740711042730,-500.0,0.00068493,120]
[354808564,1740711042740,-1220.83,0.00068493,120]
[354808565,1740711042750,-3264.74,0.00068493,120]
[354808567,1740711042761,-701.98459179,0.00068493,120]
[354808569,1740711042772,-701.98459179,0.00068493,120]
[354808572,1740711042782,-701.98459179,0.00068493,120]
[354808574,1740711042792,-701.98459179,0.00068493,120]
[354808576,1740711042802,-701.98459179,0.00068493,120]
[354808578,1740711042812,-701.98459179,0.00068493,120]
[354808580,1740711042822,-701.98459179,0.00068493,120]
[354808582,1740711042832,-701.98459179,0.00068493,120]
[354808584,1740711042842,-701.98459179,0.00068493,120]
[354808586,1740711042852,-701.98459179,0.00068493,120]
[354808588,1740711042862,-701.98459179,0.00068493,120]
[354808590,1740711042871,-701.98459179,0.00068493,120]
[354808592,1740711042881,-701.98459179,0.00068493,120]
[354808595,1740711042890,-701.98459179,0.00068493,120]
[354808598,1740711042900,-701.98459179,0.00068493,120]
[354808602,1740711042911,-701.98459179,0.00068493,120]
[354808606,1740711042921,-701.98459179,0.00068493,120]
[354808609,1740711042935,-701.98459179,0.00068493,120]
[354808613,1740711042944,-701.98459179,0.00068493,120]
[354808617,1740711042954,-701.98459179,0.00068493,120]
[354808621,1740711042964,-701.98459179,0.00068493,120]
[354808624,1740711042974,-701.98459179,0.00068493,120]
[354808629,1740711042983,-701.98459179,0.00068493,120]
[354808631,1740711042993,-701.98459179,0.00068493,120]
[354808634,1740711043004,-701.98459179,0.00068493,120]
[354808637,1740711043013,-701.98459179,0.00068493,120]
[354808640,1740711043023,-701.98459179,0.00068493,120]
[354808643,1740711043032,-701.98459179,0.00068493,120]
[354808646,1740711043042,-701.98459179,0.00068493,120]
[354808649,1740711043053,-701.98459179,0.00068493,120]
[354808654,1740711043063,-701.98459179,0.00068493,120]
[354808658,1740711043073,-701.98459179,0.00068493,120]
[354808662,1740711043082,-701.98459179,0.00068493,120]
[354808665,1740711043092,-701.98459179,0.00068493,120]
[354808669,1740711043101,-701.98459179,0.00068493,120]
[354808673,1740711043110,-701.98459179,0.00068493,120]
[354808675,1740711043120,-701.98459179,0.00068493,120]
[354808677,1740711043130,-701.98459179,0.00068493,120]
[354808680,1740711043139,-701.98459179,0.00068493,120]
[354808683,1740711043148,-701.98459179,0.00068493,120]
[354808686,1740711043160,-701.98459179,0.00068493,120]
[354808689,1740711043170,-701.98459179,0.00068493,120]
[354808692,1740711043184,-701.98459179,0.00068493,120]
[354808695,1740711043194,-701.98459179,0.00068493,120]
[354808697,1740711043204,-701.98459179,0.00068493,120]
[354808700,1740711043214,-701.98459179,0.00068493,120]
[354808703,1740711043223,-701.98459179,0.00068493,120]
[354808706,1740711043232,-701.98459179,0.00068493,120]
[354808710,1740711043242,-701.98459179,0.00068493,120]
[354808713,1740711043253,-701.98459179,0.00068493,120]
[354808716,1740711043263,-701.98459179,0.00068493,120]
[354808719,1740711043273,-1178.86,0.00068493,120]
[354808720,1740711043282,-1000.0,0.00068493,2]
[354808721,1740711043292,-200.0,0.0006868,120]
[354808722,1740711043301,-1792.35,0.000687,30]
[354808723,1740711043311,-650.0,0.00068712,15]
[354808725,1740711043320,-1624.99,0.00068938,120]
[354808727,1740711043329,-560.65,0.00068938,120]
[354808729,1740711043340,-1395.02,0.00068938,120]
[354808731,1740711043350,-500.0,0.00069036,120]
[354808733,1740711043360,-1916.66,0.00069036,120]
[354808736,1740711043370,-1371.64,0.00069036,120]
[354808738,1740711043380,-3093.38,0.00069036,120]
[354808740,1740711043390,-745.08,0.00069036,120]
[354808742,1740711043399,-500.0,0.00069036,120]
[354808744,1740711043410,-500.0,0.00069036,120]
[354808746,1740711043420,-1141.61,0.00069036,120]
[354808748,1740711043429,-585.52,0.00069036,120]
[354808750,1740711043438,-500.0,0.00069036,120]
[354808752,1740711043449,-367.21438406,0.00069036,120]
[354808764,1740711043567,-2121.8,0.00069036,120]
[354808767,1740711043579,-799.49,0.00069036,120]
[354808769,1740711043589,-500.0,0.00069036,120]
[354808771,1740711043599,-1492.81,0.00069036,120]
[354808773,1740711043608,-762.94,0.00069036,120]
[354808775,1740711043618,-500.0,0.00069036,120]
[354808777,1740711043627,-500.0,0.00069036,120]
[354808779,1740711043636,-500.0,0.00069036,120]
[354808781,1740711043645,-500.0,0.00069036,120]
[354808783,1740711043655,-6264.52,0.00069036,120]
[354808785,1740711043668,-500.0,0.00069036,120]
[354808787,1740711043678,-15140.25,0.00069036,7]
[354808789,1740711043687,-1016.52,0.00069036,120]
[354808791,1740711043699,-500.0,0.00069036,120]
[354808793,1740711043710,-500.0,0.00069036,120]
[354808795,1740711043720,-318.09,0.00069037,120]
[354808797,1740711043729,-500.0,0.00069037,120]
[354808799,1740711043739,-586.18,0.00069037,120]
[354808801,1740711043748,-500.0,0.00069037,120]
[354808803,1740711043757,-500.0,0.00069037,120]
[354808805,1740711043768,-500.0,0.00069037,120]
[354808808,1740711043780,-689.73,0.00069037,120]
[354808811,1740711043790,-721.81,0.00069037,120]
[354808814,1740711043799,-524.05,0.00069037,120]
[354808817,1740711043809,-3541.66,0.00069037,120]
[354808820,1740711043818,-500.0,0.00069037,120]
[354808823,1740711043827,-500.0,0.00069037,120]
[354808826,1740711043837,-500.0,0.00069037,120]
[354808829,1740711043846,-500.0,0.00069037,120]
[354808832,1740711043855,-725.19,0.00069037,120]
[354808835,1740711043865,-500.0,0.00069037,120]
[354808838,1740711043874,-535.88,0.00069038,120]
[354808841,1740711043883,-500.0,0.00069038,120]
[354808844,1740711043892,-500.0,0.00069038,120]
[354808847,1740711043902,-500.0,0.00069038,120]
[354808850,1740711043914,-500.0,0.00069038,120]
[354808853,1740711043923,-619.7,0.00069038,120]
[354808856,1740711043932,-151.0,0.00069038,120]
[354808859,1740711043941,-151.0,0.00069038,120]
[354808862,1740711043951,-933.044701,0.00069038,120]
[354808865,1740711043960,-933.044701,0.00069038,120]
[354808868,1740711043970,-492.23624298,0.00069038,120]
[354808871,1740711043979,-371.500554,0.00069038,120]
[354808874,1740711043989,-500.0,0.00069038,120]
[354808877,1740711043998,-371.500554,0.00069038,120]
[354808880,1740711044008,-500.0,0.00069038,120]
[354808883,1740711044019,-702.01,0.00069038,120]
[354808886,1740711044029,-3780.72,0.00069038,120]
[354808889,1740711044039,-500.0,0.00069038,120]
[354808892,1740711044049,-3816.17,0.00069038,120]
[354808895,1740711044058,-500.0,0.00069038,120]
[354808898,1740711044068,-458.97376966,0.00069038,120]
[354808901,1740711044077,-28125.23,0.00069038,7]
[354808904,1740711044087,-2308.32,0.00069038,120]
[354808907,1740711044097,-684.28,0.00069038,120]
[354808910,1740711044107,-500.0,0.00069038,120]
[354808912,1740711044117,-500.0,0.00069039,120]
[354808914,1740711044127,-536.68962895,0.00069039,120]
[354808917,1740711044138,-500.0,0.00069039,120]
[354808919,1740711044147,-500.0,0.00069039,120]
[354808921,1740711044157,-500.0,0.00069039,120]
[354808923,1740711044168,-500.0,0.00069039,120]
[354808925,1740711044177,-155.260093,0.00069039,120]
[354808927,1740711044186,-151.0,0.00069039,120]
[354808929,1740711044195,-500.0,0.00069039,120]
[354808931,1740711044205,-151.0,0.00069039,120]
[354808933,1740711044214,-500.0,0.00069039,120]
[354808934,1740711044226,-500.0,0.00069039,120]
[354808935,1740711044235,-151.0,0.00069039,120]
[354808936,1740711044245,-151.0,0.00069039,120]
[354808937,1740711044254,-151.0,0.00069039,120]
[354808939,1740711044263,-151.0,0.00069039,120]
[354808941,1740711044273,-151.0,0.00069039,120]
[354808943,1740711044282,-151.0,0.00069039,120]
[354808945,1740711044291,-500.0,0.00069039,120]
[354808947,1740711044301,-500.0,0.00069039,120]
[354808950,1740711044310,-152.372761,0.00069039,120]
[354808952,1740711044320,-154.298041,0.00069039,120]
[354808953,1740711044330,-151.0,0.00069039,120]
[354808955,1740711044339,-161.6975,0.00069039,120]
[354808958,1740711044350,-151.0,0.00069039,120]
[354808960,1740711044360,-500.0,0.00069039,120]
[354808962,1740711044369,-467.167709,0.00069039,120]
[354808964,1740711044379,-467.167709,0.00069039,120]
[354808966,1740711044388,-500.0,0.00069039,120]
[354808968,1740711044397,-500.0,0.00069039,120]
[354808970,1740711044406,-3354.16,0.00069039,120]
[354808972,1740711044418,-500.0,0.00069039,120]
[354808974,1740711044429,-1014.01496976,0.00069039,60]
[354808976,1740711044438,-162.27,0.00069093,120]
[354808978,1740711044448,-737.100244,0.0006926,15]
[354808980,1740711044457,-2000.0,0.000695,120]
[354808982,1740711044466,-500.0,0.000699,120]
[354808984,1740711044475,-500.0,0.000699,120]
[354808986,1740711044485,-500.0,0.000699,120]
[354808988,1740711044494,-500.0,0.000699,120]
[354808990,1740711044503,-500.0,0.000699,120]
[354808992,1740711044512,-575.78,0.000699,120]
[354808994,1740711044522,-1350.0,0.000699,120]
[354808996,1740711044531,-1350.0,0.000699,120]
[354808998,1740711044540,-500.0,0.0007,60]
[354809000,1740711044549,-2200.0,0.00070045,120]
[354809001,1740711044559,-678.77,0.00070045,30]
[354809002,1740711044568,-7542.16358031,0.000702,2]
[354809003,1740711044577,-160.538884,0.00070231,10]
[354809004,1740711044587,-64468.83,0.000703,30]
[354809005,1740711044596,-151.0,0.000703,120]
[354809006,1740711044605,-151.0,0.000703,120]
[354809007,1740711044614,-347.378101,0.000703,120]
[354809008,1740711044624,-347.378101,0.000703,120]
[354809009,1740711044633,-151.0,0.000703,120]
[354809010,1740711044642,-151.0,0.000703,120]
[354809011,1740711044651,-151.0,0.000703,120]
[354809012,1740711044663,-690.848298,0.000703,120]
[354809013,1740711044671,-690.848298,0.000703,120]
[354809014,1740711044682,-151.0,0.000703,120]
[354809015,1740711044694,-151.0,0.000703,30]
[354809016,1740711044704,-155.337929,0.000703,120]
[354809017,1740711044714,-151.0,0.000703,120]
[354809018,1740711044725,-151.0,0.000703,120]
[354809019,1740711044735,-1076.841152,0.000703,120]
[354809020,1740711044745,-1076.841152,0.000703,120]
[354809021,1740711044755,-184.451296,0.000703,120]
[354809022,1740711044767,-184.451296,0.000703,120]
[354809023,1740711044777,-150.0,0.00070337,2]
[354809024,1740711044786,-3661.29,0.000704,30]
[354809025,1740711044796,-1431.26,0.000704,30]
[354809026,1740711044805,-505.82362214,0.00070871,15]
[354809027,1740711044815,-1500.0,0.00070871,15]
[354809028,1740711044824,-1501.82480816,0.00070871,14]
[354809029,1740711044833,-192.059,0.00071159,120]
[354809030,1740711044842,-250.0,0.00071159,120]
[354809031,1740711044852,-397.0,0.00071159,2]
[354809032,1740711044861,-500.0,0.00071232,120]
[354809035,1740711044871,-1220.83,0.00071232,120]
[354809036,1740711044880,-500.0,0.00071232,120]
[354809038,1740711044889,-500.0,0.00071232,120]
[354809040,1740711044899,-3264.74,0.00071232,120]
[354809042,1740711044910,-1178.86,0.00071232,120]
[354809044,1740711044920,-1000.0,0.00071232,2]
[354809046,1740711044931,-5503.07,0.00071677,120]
[354809048,1740711044940,-1624.99,0.00071678,120]
[354809050,1740711044950,-560.65,0.00071678,120]
[354809052,1740711044959,-1395.02,0.00071678,120]
[354809054,1740711044968,-500.0,0.00071776,120]
[354809056,1740711044978,-586.18,0.00071776,120]
[354809058,1740711044987,-500.0,0.00071776,120]
[354809060,1740711044996,-500.0,0.00071776,120]
[354809062,1740711045005,-500.0,0.00071776,120]
[354809064,1740711045015,-689.73,0.00071776,120]
[354809066,1740711045024,-721.81,0.00071776,120]
[354809068,1740711045034,-151.0,0.00071776,120]
[354809070,1740711045044,-3541.66,0.00071776,120]
[354809072,1740711045055,-500.0,0.00071776,120]
[354809074,1740711045065,-1916.66,0.00071776,120]
[354809076,1740711045075,-577.13,0.00071776,120]
[354809078,1740711045084,-672.305236,0.00071776,120]
[354809080,1740711045093,-672.305236,0.00071776,120]
[354809082,1740711045102,-151.0,0.00071776,120]
[354809084,1740711045112,-196.19770608,0.00071776,120]
[354809086,1740711045121,-500.0,0.00071776,120]
[354809088,1740711045130,-151.0,0.00071776,2]
[354809090,1740711045140,-1371.64,0.00071776,120]
[354809092,1740711045149,-151.0,0.00071776,2]
[354809094,1740711045158,-448.133255,0.00071776,120]
[354809095,1740711045171,-3093.38,0.00071776,120]
[354809097,1740711045180,-448.133255,0.00071776,120]
[354809099,1740711045191,-745.08,0.00071776,120]
[354809101,1740711045200,-500.0,0.00071776,120]
[354809103,1740711045210,-151.0,0.00071776,120]
[354809105,1740711045220,-500.0,0.00071776,120]
[354809107,1740711045230,-1141.61,0.00071776,120]
[354809109,1740711045241,-585.52,0.00071776,120]
[354809111,1740711045250,-500.0,0.00071776,120]
[354809113,1740711045260,-2121.8,0.00071776,120]
[354809115,1740711045269,-500.0,0.00071776,120]
[354809117,1740711045279,-799.49,0.00071776,120]
[354809119,1740711045288,-500.0,0.00071776,120]
[354809121,1740711045298,-1492.81,0.00071776,120]
[354809123,1740711045308,-762.94,0.00071776,120]
[354809125,1740711045317,-500.0,0.00071776,120]
[354809127,1740711045326,-500.0,0.00071776,120]
[354809128,1740711045336,-500.0,0.00071776,120]
[354809130,1740711045345,-725.19,0.00071776,120]
[354809132,1740711045354,-500.0,0.00071776,120]
[354809134,1740711045364,-6264.52,0.00071776,120]
[354809136,1740711045373,-500.0,0.00071776,120]
[354809138,1740711045383,-15140.25,0.00071776,7]
[354809140,1740711045392,-1016.52,0.00071776,120]
[354809142,1740711045401,-500.0,0.00071776,120]
[354809144,1740711045413,-500.0,0.00071776,120]
[354809146,1740711045424,-500.0,0.00071776,120]
[354809149,1740711045434,-535.88,0.00071777,120]
[354809151,1740711045447,-500.0,0.00071777,120]
[354809153,1740711045456,-500.0,0.00071777,120]
[354809155,1740711045465,-500.0,0.00071777,120]
[354809156,1740711045475,-500.0,0.00071777,120]
[354809159,1740711045486,-619.7,0.00071777,120]
[354809160,1740711045497,-500.0,0.00071777,120]
[354809162,1740711045507,-500.0,0.00071777,120]
[354809164,1740711045516,-702.01,0.00071777,120]
[354809166,1740711045526,-3780.72,0.00071777,120]
[354809168,1740711045536,-500.0,0.00071777,120]
[354809170,1740711045545,-3816.17,0.00071777,120]
[354809172,1740711045555,-513.78728819,0.00071777,120]
[354809174,1740711045564,-28125.23,0.00071777,7]
[354809176,1740711045574,-2308.32,0.00071777,120]
[354809178,1740711045584,-684.28,0.00071777,120]
[354809180,1740711045594,-500.0,0.00071777,120]
[354809182,1740711045603,-500.0,0.00071779,120]
[354809184,1740711045613,-500.0,0.00071779,120]
[354809186,1740711045622,-307.34,0.00071779,120]
[354809187,1740711045631,-500.0,0.00071779,120]
[354809188,1740711045641,-500.0,0.00071779,120]
[354809189,1740711045651,-500.0,0.00071779,120]
[354809190,1740711045660,-500.0,0.00071779,120]